bitfinex/quotes_BTCUSD_20241223
["timestamp","ask_amount","ask_price","bid_price","bid_amount"]
[1734985426700,0.15,92697.0,92678.0,0.10398632]
[1734985427161,0.1865915,92697.0,92678.0,0.10398632]
[1734985427372,0.1865915,92697.0,92681.0,0.215793]
[1734985427545,0.215736,92706.0,92683.0,0.215789]
[1734985427723,0.00150851,92703.0,92684.0,0.10398632]
[1734985428523,0.00015998,92703.0,92685.0,0.00101875]
[1734985428727,0.0015084,92703.0,92686.0,0.10398632]
[1734985428944,0.215746,92702.0,92686.0,0.10398632]
[1734985429150,0.215746,92702.0,92686.0,0.08398632]
[1734985430428,0.220746,92702.0,92686.0,0.08398632]
[1734985431006,0.215749,92700.0,92686.0,0.08398632]
[1734985431545,0.215746,92702.0,92687.0,0.291679]
[1734985431757,0.216746,92702.0,92688.0,0.10398632]
[1734985431957,0.00134843,92701.0,92678.0,0.0759]
[1734985432166,0.215777,92688.0,92679.0,0.10398632]
[1734985432372,0.215782,92686.0,92672.0,8.54e-05]
[1734985432579,0.215807,92676.0,92672.0,8.54e-05]
[1734985432783,0.431614,92676.0,92672.0,8.54e-05]
[1734985432986,0.00134891,92675.0,92672.0,8.54e-05]
[1734985433195,0.21581,92674.0,92672.0,8.54e-05]
[1734985433403,0.00134892,92673.0,92672.0,8.54e-05]
[1734985434047,0.21581,92674.0,92672.0,8.54e-05]
[1734985434226,0.215824,92668.0,92666.0,98.38357208]
[1734985434439,0.15,92679.0,92666.0,98.38357208]
[1734985434645,0.215805,92676.0,92666.0,98.38357208]
[1734985434850,0.004,92686.0,92666.0,98.38357208]
[1734985435062,0.215814,92672.0,92666.0,98.38357208]
[1734985435285,0.215826,92667.0,92666.0,98.38357208]
[1734985437392,0.215817,92671.0,92666.0,98.38357208]
[1734985437393,0.215821,92669.0,92666.0,98.38357208]
[1734985437593,0.215802,92678.0,92666.0,98.38357208]
[1734985437594,0.215811,92674.0,92666.0,98.38357208]
[1734985437796,0.003,92667.0,92666.0,98.38357208]
[1734985438227,0.215811,92674.0,92666.0,98.38357208]
[1734985438489,0.003,92667.0,92666.0,98.38357208]
[1734985438698,0.003,92667.0,92666.0,98.5105584]
[1734985438903,0.003,92667.0,92666.0,98.7384584]
[1734985439107,0.0001708,92697.0,92676.0,0.647415]
[1734985439320,0.0001708,92697.0,92684.0,0.10398632]
[1734985439536,0.0001708,92697.0,92694.0,0.023]
[1734985439761,0.0001708,92697.0,92696.0,0.023]
[1734985440162,0.0001708,92697.0,92696.0,0.12698632]
[1734985441163,0.0001708,92715.0,92707.0,0.1]
[1734985441325,0.00033081,92715.0,92714.0,0.321717]
[1734985441518,0.00033081,92715.0,92714.0,0.42570332]
[1734985441724,0.00033081,92715.0,92714.0,0.57530332]
[1734985441922,0.00033081,92715.0,92714.0,0.47530332]
[1734985442338,0.00033081,92715.0,92714.0,0.57530332]
[1734985443049,0.00033081,92715.0,92714.0,0.67530332]
[1734985443128,0.00033081,92715.0,92714.0,0.67730332]
[1734985443574,0.00033081,92715.0,92714.0,0.67530332]
[1734985443770,0.00033081,92715.0,92714.0,0.68030332]
[1734985444072,0.00033081,92715.0,92714.0,0.58030332]
[1734985444472,0.00033081,92715.0,92714.0,0.48030332]
[1734985444923,0.00033081,92715.0,92714.0,0.47530332]
[1734985445703,0.00033081,92715.0,92714.0,0.57530332]
[1734985445925,0.00033081,92715.0,92714.0,0.67530332]
[1734985446155,0.215606,92762.0,92729.0,0.215682]
[1734985446371,0.00016004,92748.0,92746.0,0.0814]
[1734985446575,0.00016004,92748.0,92747.0,0.22800267]
[1734985446785,0.00016004,92748.0,92747.0,0.22698632]
[1734985447594,0.00016004,92748.0,92747.0,0.37538632]
[1734985447798,0.00016004,92748.0,92747.0,0.53935511]
[1734985448620,0.00016004,92748.0,92747.0,0.54435511]
[1734985449055,0.00016004,92748.0,92747.0,0.54835511]
[1734985449227,0.00016004,92748.0,92747.0,0.53935511]
[1734985449430,0.00016004,92748.0,92747.0,0.54435511]
[1734985449744,0.00016004,92748.0,92747.0,0.55335511]
[1734985449977,0.215548,92787.0,92755.0,0.2]
[1734985450149,0.215559,92783.0,92758.0,0.238614]
[1734985450346,0.215559,92783.0,92760.0,0.023]
[1734985450584,0.215559,92783.0,92767.0,0.215593]
[1734985450769,0.215559,92783.0,92768.0,0.12555452]
[1734985450993,0.215549,92786.0,92768.0,0.12555452]
[1734985451395,0.215573,92776.0,92747.0,0.0574]
[1734985451599,0.215586,92770.0,92750.0,0.215633]
[1734985451804,0.0001708,92796.0,92750.0,0.215633]
[1734985451805,0.215574,92776.0,92758.0,0.215614]
[1734985451940,0.0001708,92796.0,92751.0,0.10506427]
[1734985451941,0.00033077,92796.0,92759.0,0.10506427]
[1734985452154,0.215559,92782.0,92760.0,0.22611543]
[1734985452355,0.215573,92776.0,92761.0,0.10398632]
[1734985452557,0.215584,92772.0,92750.0,0.215633]
[1734985452763,0.215584,92772.0,92747.0,0.0484]
[1734985452764,0.215528,92795.0,92756.0,0.023]
[1734985452970,0.02379599,92794.0,92759.0,0.215612]
[1734985453170,0.02379599,92794.0,92758.0,0.023]
[1734985453171,0.215571,92777.0,92760.0,0.10398632]
[1734985453601,0.02379599,92794.0,92761.0,0.023]
[1734985453807,0.15,92786.0,92763.0,0.023]
[1734985453998,0.15,92786.0,92761.0,0.02407789]
[1734985453999,0.15,92794.0,92764.0,0.31958632]
[1734985454223,0.15,92782.0,92765.0,0.03436642]
[1734985454437,0.215561,92781.0,92766.0,0.10398632]
[1734985454580,0.215572,92777.0,92766.0,0.10398632]
[1734985455072,0.15,92780.0,92741.0,0.1]
[1734985455286,0.15,92780.0,92749.0,0.12806428]
[1734985455495,0.215577,92775.0,92756.0,0.215617]
[1734985455699,0.215587,92770.0,92757.0,0.10398632]
[1734985456538,0.215552,92785.0,92750.0,0.03578643]
[1734985456746,0.15033077,92796.0,92751.0,0.10398632]
[1734985456747,0.215607,92762.0,92751.0,0.10398632]
[1734985457206,0.215607,92762.0,92757.0,0.003]
[1734985457719,0.0781,92794.0,92758.0,0.10398632]
[1734985457852,0.215544,92789.0,92759.0,0.10107789]
[1734985458062,0.215528,92795.0,92764.0,0.1]
[1734985458268,0.0001708,92796.0,92786.0,0.215547]
[1734985458515,0.0001708,92796.0,92788.0,0.215545]
[1734985458716,0.0001708,92796.0,92787.0,0.10506394]
[1734985458717,0.0001708,92796.0,92789.0,0.10398632]
[1734985459087,0.0001708,92796.0,92789.0,0.08398632]
[1734985459292,0.0001708,92796.0,92790.0,0.02995293]
[1734985459493,0.00033077,92796.0,92791.0,0.10398632]
[1734985459689,0.00033077,92796.0,92788.0,0.001]
[1734985459903,0.215539,92791.0,92788.0,0.001]
[1734985460347,0.215539,92791.0,92789.0,0.003]
[1734985460552,0.431078,92791.0,92788.0,0.001]
[1734985460787,0.215552,92785.0,92768.0,0.023]
[1734985461035,0.215552,92785.0,92769.0,0.31957532]
[1734985461854,0.00033077,92796.0,92769.0,0.10398632]
[1734985462040,0.215563,92781.0,92769.0,0.10398632]
[1734985462643,0.215563,92781.0,92769.0,0.10498632]
[1734985462846,0.215549,92786.0,92769.0,0.10498632]
[1734985463624,0.215549,92786.0,92769.0,0.10898632]
[1734985463803,0.21556,92782.0,92769.0,0.10498632]
[1734985464096,0.21556,92782.0,92769.0,0.10398632]
[1734985464266,0.215569,92778.0,92769.0,0.10598632]
[1734985464781,0.215569,92778.0,92769.0,0.10398632]
[1734985464987,0.215554,92784.0,92769.0,0.10398632]
[1734985465307,0.15,92790.0,92771.0,0.023]
[1734985465522,0.00033077,92796.0,92783.0,0.215555]
[1734985465720,0.00033077,92796.0,92787.0,0.215545]
[1734985465929,0.00033077,92796.0,92793.0,0.431064]
[1734985466143,0.00033077,92796.0,92794.0,0.10506384]
[1734985466362,0.00033077,92796.0,92794.0,0.15238632]
[1734985466579,0.00033077,92796.0,92795.0,0.215528]
[1734985466878,0.00033077,92796.0,92795.0,0.31951432]
[1734985468078,0.00033077,92796.0,92795.0,0.34251432]
[1734985468276,0.00033077,92796.0,92795.0,0.34451432]
[1734985468484,0.00033077,92796.0,92795.0,0.44451432]
[1734985468702,0.00033077,92796.0,92795.0,0.54451432]
[1734985468905,0.215419,92842.0,92837.0,0.1]
[1734985469104,0.43099991,92842.0,92837.0,0.025]
[1734985469924,0.215448,92830.0,92828.0,0.025]
[1734985470097,0.215435,92836.0,92832.0,0.025]
[1734985470894,0.430869,92836.0,92832.0,0.025]
[1734985471749,0.215434,92836.0,92823.0,0.025]
[1734985471947,0.215471,92820.0,92818.0,0.025]
[1734985472149,0.15,92835.0,92811.0,0.025]
[1734985472377,0.215484,92814.0,92813.0,0.025]
[1734985472547,0.215498,92808.0,92803.0,0.025]
[1734985472854,0.215494,92810.0,92809.0,0.025]
[1734985473227,0.215494,92810.0,92807.0,0.025]
[1734985473431,0.0751,92858.0,92831.0,0.025]
[1734985473726,0.0751,92858.0,92813.0,0.008]
[1734985473727,0.215387,92856.0,92832.0,0.025]
[1734985473936,0.21544,92834.0,92832.0,0.025]
[1734985474135,0.21544,92834.0,92832.0,0.019]
[1734985475139,0.21559991,92834.0,92832.0,0.019]
[1734985475519,0.21559991,92834.0,92827.0,0.019]
[1734985475946,0.21545,92829.0,92826.0,0.019]
[1734985476161,0.215454,92827.0,92826.0,0.019]
[1734985476388,0.21545,92829.0,92826.0,0.019]
[1734985476603,0.215473,92819.0,92817.0,0.019]
[1734985476814,0.00015991,92834.0,92817.0,0.019]
[1734985476989,0.215474,92819.0,92817.0,0.019]
[1734985477187,0.430948,92819.0,92815.0,0.019]
[1734985477609,0.001,92827.0,92818.0,0.019]
[1734985477781,0.00015991,92834.0,92822.0,0.019]
[1734985478132,0.00015991,92834.0,92816.0,0.019]
[1734985478271,0.21547,92821.0,92816.0,0.019]
[1734985478962,0.215461,92824.0,92816.0,0.019]
[1734985479168,0.00115991,92834.0,92816.0,0.015]
[1734985479347,0.430901,92829.0,92817.0,0.0230493]
[1734985479544,0.215469,92821.0,92817.0,0.0230493]
[1734985480191,0.21546,92825.0,92821.0,0.015]
[1734985480550,0.215455,92827.0,92821.0,0.015]
[1734985481332,0.215456,92826.0,92821.0,0.015]
[1734985481560,0.21544,92833.0,92821.0,0.015]
[1734985481762,0.21544,92833.0,92821.0,0.016]
[1734985481964,0.215456,92826.0,92821.0,0.04165323]
[1734985482360,0.215442,92832.0,92825.0,0.015]
[1734985482673,0.00015991,92834.0,92833.0,0.015]
[1734985484071,0.00015991,92834.0,92831.0,0.215445]
[1734985484275,0.00015991,92834.0,92832.0,0.10398632]
[1734985484993,0.00015991,92834.0,92832.0,0.31942832]
[1734985486488,0.00015991,92834.0,92833.0,0.023]
[1734985486723,0.00015991,92834.0,92833.0,0.12698632]
[1734985487293,0.00015991,92834.0,92828.0,0.0469]
[1734985487453,0.00015991,92834.0,92832.0,0.003]
[1734985487664,0.21544,92833.0,92832.0,0.003]
[1734985487871,0.00015991,92834.0,92822.0,0.215464]
[1734985488070,0.00015991,92834.0,92823.0,0.10506357]
[1734985488278,0.00015991,92834.0,92824.0,0.215461]
[1734985488503,0.00015991,92834.0,92832.0,0.003]
[1734985488749,0.00015991,92834.0,92833.0,0.21544]
[1734985488937,0.00015991,92834.0,92833.0,0.31942632]
[1734985489176,0.00015991,92834.0,92833.0,0.10398632]
[1734985489383,0.00015991,92834.0,92833.0,0.10698632]
[1734985489784,0.00015991,92834.0,92833.0,0.10398632]
[1734985490017,0.00015991,92834.0,92833.0,0.56910336]
[1734985490199,8.53e-05,92837.0,92836.0,0.215433]
[1734985490417,8.53e-05,92837.0,92836.0,0.69241932]
[1734985491403,0.215329,92881.0,92867.0,0.21536]
[1734985491589,0.215338,92878.0,92867.0,0.21536]
[1734985492616,0.15,92880.0,92867.0,0.21536]
[1734985492850,0.15,92878.0,92864.0,0.215368]
[1734985493063,0.15,92878.0,92866.0,0.215364]
[1734985493471,0.15,92878.0,92865.0,0.10398632]
[1734985493472,0.215338,92877.0,92865.0,0.10398632]
[1734985493669,0.15,92878.0,92866.0,0.215364]
[1734985493875,0.21586215,92881.0,92867.0,0.215361]
[1734985494189,0.21586215,92881.0,92867.0,0.195361]
[1734985494826,0.215339,92877.0,92865.0,0.31935132]
[1734985495215,0.21586215,92881.0,92866.0,0.00107674]
[1734985495216,0.00053315,92881.0,92866.0,0.00107674]
[1734985495417,0.00053315,92881.0,92874.0,0.023]
[1734985495619,0.00053315,92881.0,92880.0,0.215331]
[1734985495834,0.00053315,92881.0,92880.0,0.34231732]
[1734985496473,0.1,92927.0,92880.0,0.10398632]
[1734985496625,0.215288,92899.0,92883.0,0.215324]
[1734985496867,0.215288,92899.0,92884.0,0.10398632]
[1734985497054,0.215281,92902.0,92885.0,0.21532]
[1734985497256,0.215281,92902.0,92886.0,0.10398632]
[1734985497661,0.21529,92898.0,92886.0,0.10398632]
[1734985498316,0.215282,92902.0,92886.0,0.31930332]
[1734985498898,0.430564,92902.0,92886.0,0.31930332]
[1734985499111,0.430564,92902.0,92886.0,0.29930332]
[1734985499323,0.21529,92898.0,92886.0,0.08598632]
[1734985499526,0.43058,92898.0,92886.0,0.002]
[1734985499843,0.43058,92898.0,92879.0,0.215332]
[1734985500054,0.43058,92898.0,92880.0,0.10398632]
[1734985500259,0.21529,92898.0,92881.0,0.430658]
[1734985500459,0.21529,92898.0,92883.0,0.215324]
[1734985501204,0.21529,92898.0,92882.0,0.10398632]
[1734985501422,0.430579,92898.0,92882.0,0.10398632]
[1734985501639,0.00015987,92907.0,92851.0,0.215398]
[1734985501846,0.00015987,92907.0,92846.0,0.15]
[1734985501847,0.215329,92882.0,92868.0,0.215357]
[1734985502022,0.215329,92882.0,92860.0,0.00107667]
[1734985502023,0.215329,92882.0,92869.0,0.10398632]
[1734985502660,0.0430652,92881.0,92855.0,0.215388]
[1734985502861,0.15,92896.0,92861.0,0.15138632]
[1734985503061,0.215347,92874.0,92868.0,0.007]
[1734985503291,0.215347,92874.0,92869.0,0.003]
[1734985503602,0.15,92894.0,92870.0,0.10398632]
[1734985503814,0.15,92894.0,92870.0,0.13759831]
[1734985504036,0.15,92894.0,92878.0,0.19733399]
[1734985504037,0.3653,92894.0,92878.0,0.19733399]
[1734985504248,0.00015984,92894.0,92882.0,0.215324]
[1734985504453,0.00015984,92894.0,92886.0,0.215316]
[1734985504657,0.00015984,92894.0,92882.0,0.10398632]
[1734985504854,0.00015984,92894.0,92883.0,0.215324]
[1734985505059,0.00015984,92894.0,92882.0,0.31931232]
[1734985505741,0.00015984,92894.0,92882.0,0.32031232]
[1734985506054,0.215301,92893.0,92882.0,0.10398632]
[1734985506256,0.00015984,92894.0,92882.0,0.10498632]
[1734985506489,0.00015984,92894.0,92882.0,0.32131232]
[1734985506731,0.215289,92899.0,92883.0,0.05197228]
[1734985506912,0.15,92909.0,92884.0,0.10398632]
[1734985507060,0.215275,92904.0,92884.0,0.10398632]
[1734985507265,0.15,92903.0,92884.0,0.10398632]
[1734985508180,0.15,92903.0,92890.0,0.215307]
[1734985508386,0.15,92906.0,92891.0,0.24723533]
[1734985508818,0.15,92904.0,92891.0,0.24723533]
[1734985509177,0.002,92903.0,92891.0,0.22723533]
[1734985509379,0.15,92904.0,92891.0,0.22723533]
[1734985510455,0.215278,92903.0,92887.0,0.215314]
[1734985510674,0.215114,92903.0,92888.0,0.10398632]
[1734985510826,0.215273,92905.0,92888.0,0.10398632]
[1734985511041,0.215278,92903.0,92888.0,0.10398632]
[1734985511385,0.217278,92903.0,92888.0,0.10398632]
[1734985511844,0.215278,92903.0,92888.0,0.10398632]
[1734985512056,0.001,92905.0,92889.0,0.21531]
[1734985512364,0.001,92905.0,92889.0,0.10398632]
[1734985512365,0.215275,92904.0,92889.0,0.10398632]
[1734985512526,0.15,92903.0,92889.0,0.10398632]
[1734985512948,0.21528,92902.0,92889.0,0.10398632]
[1734985513160,0.21528,92902.0,92883.0,0.0472]
[1734985513161,0.215302,92893.0,92883.0,0.0472]
[1734985514297,0.215314,92888.0,92883.0,0.0372]
[1734985514501,0.215314,92888.0,92882.0,0.00015984]
[1734985514643,0.215295,92896.0,92882.0,0.10414616]
[1734985514844,0.215286,92900.0,92882.0,0.10414616]
[1734985515050,0.23688972,92920.0,92882.0,0.10414616]
[1734985515051,0.02164972,92920.0,92883.0,0.10506286]
[1734985515251,0.215276,92904.0,92883.0,0.10798632]
[1734985515502,0.215271,92906.0,92891.0,0.215304]
[1734985516067,5.296e-05,92899.0,92891.0,0.215304]
[1734985517335,5.296e-05,92899.0,92887.0,0.0486]
[1734985517545,5.296e-05,92899.0,92895.0,0.215295]
[1734985518302,5.296e-05,92899.0,92895.0,0.430591]
[1734985518498,5.296e-05,92899.0,92895.0,0.215295]
[1734985518906,0.06081363,92911.0,92895.0,0.215295]
[1734985519195,0.2153433,92912.0,92896.0,0.12806275]
[1734985519196,8.53e-05,92912.0,92896.0,0.12806275]
[1734985519411,8.53e-05,92912.0,92911.0,0.023]
[1734985519585,8.53e-05,92912.0,92911.0,0.12806244]
[1734985520509,8.53e-05,92912.0,92911.0,0.17426244]
[1734985521951,8.53e-05,92912.0,92911.0,0.17726244]
[1734985522360,8.53e-05,92912.0,92911.0,0.25406244]
[1734985522593,8.53e-05,92912.0,92911.0,0.25698632]
[1734985522800,8.53e-05,92912.0,92911.0,0.26098632]
[1734985523016,8.53e-05,92912.0,92911.0,0.28952331]
[1734985523223,8.53e-05,92912.0,92911.0,0.26298632]
[1734985524221,8.53e-05,92912.0,92911.0,0.23998632]
[1734985524867,4.53e-05,92912.0,92911.0,0.23998632]
[1734985525061,0.0139604,92934.0,92911.0,0.23598632]
[1734985525266,0.00024502,92923.0,92922.0,0.31922032]
[1734985525543,0.00024502,92923.0,92922.0,0.44812032]
[1734985526895,0.00024502,92923.0,92922.0,0.45712032]
[1734985528195,0.00024502,92923.0,92922.0,0.45212032]
[1734985528405,0.00024502,92923.0,92922.0,0.47512032]
[1734985528546,0.00024502,92923.0,92922.0,0.48412032]
[1734985528744,0.00024502,92923.0,92922.0,0.47512032]
[1734985528946,0.00024502,92923.0,92922.0,0.48412032]
[1734985529354,0.00024502,92923.0,92922.0,0.47512032]
[1734985529709,0.00024502,92923.0,92922.0,0.45712032]
[1734985529920,0.00024502,92923.0,92922.0,0.44812032]
[1734985530584,0.15,92959.0,92924.0,0.023]
[1734985530804,0.15,92959.0,92937.0,0.215198]
[1734985531015,0.21515,92958.0,92939.0,0.215194]
[1734985531224,0.215153,92957.0,92941.0,0.21519]
[1734985531436,0.21515,92958.0,92942.0,0.10398632]
[1734985531656,0.21515,92958.0,92943.0,0.215185]
[1734985531888,0.21515,92958.0,92942.0,0.10398632]
[1734985532116,0.21515,92958.0,92943.0,0.215185]
[1734985532330,0.15,92959.0,92942.0,0.10398632]
[1734985532540,0.00015972,92961.0,92947.0,0.215174]
[1734985532752,0.00015972,92961.0,92944.0,0.215183]
[1734985532753,0.001,92958.0,92944.0,0.215183]
[1734985532965,0.001,92958.0,92950.0,0.215169]
[1734985533174,0.001,92958.0,92926.0,0.023]
[1734985533382,0.001,92958.0,92933.0,0.215208]
[1734985533563,0.215168,92951.0,92935.0,0.215204]
[1734985533794,0.215168,92951.0,92936.0,0.10398632]
[1734985534148,0.215168,92951.0,92937.0,0.215199]
[1734985534525,0.215168,92951.0,92947.0,0.001]
[1734985534731,0.430307,92957.0,92947.0,0.001]
[1734985534934,0.21456229,92953.0,92947.0,0.001]
[1734985535389,0.21456229,92953.0,92937.0,0.215199]
[1734985535581,0.00015972,92961.0,92929.0,0.215217]
[1734985535785,0.215184,92944.0,92929.0,0.215217]
[1734985536209,0.215179,92946.0,92929.0,0.215217]
[1734985536834,0.00115972,92961.0,92933.0,0.215207]
[1734985537044,0.215165,92952.0,92935.0,0.215204]
[1734985537251,0.215165,92952.0,92935.0,0.31919032]
[1734985537866,0.215165,92952.0,92947.0,0.001]
[1734985538068,0.215165,92952.0,92935.0,0.31919032]
[1734985538479,0.001,92952.0,92943.0,0.215184]
[1734985538680,0.215146,92960.0,92944.0,0.10398632]
[1734985539088,0.001,92952.0,92936.0,0.195201]
[1734985539302,0.00015972,92961.0,92936.0,0.195201]
[1734985539507,0.001,92952.0,92936.0,0.195201]
[1734985539712,0.001,92952.0,92940.0,0.215192]
[1734985540716,0.001,92952.0,92943.0,0.215183]
[1734985540917,0.431292,92960.0,92943.0,0.215183]
[1734985541118,0.433292,92960.0,92943.0,0.215183]
[1734985541474,0.432292,92960.0,92943.0,0.215183]
[1734985541683,0.217146,92960.0,92943.0,0.215183]
[1734985541895,0.002,92960.0,92943.0,0.10398632]
[1734985542111,0.215147,92960.0,92943.0,0.10398632]
[1734985542558,0.215147,92960.0,92943.0,0.10506213]
[1734985542769,0.00015972,92961.0,92944.0,0.10398632]
[1734985543011,0.00015972,92961.0,92959.0,0.215146]
[1734985543193,0.00015972,92961.0,92960.0,0.1050619]
[1734985543441,0.00015972,92961.0,92960.0,0.10398632]
[1734985543829,0.00015972,92961.0,92960.0,0.10506188]
[1734985544301,0.00115972,92961.0,92960.0,0.08506188]
[1734985544482,0.00015972,92961.0,92960.0,0.08506188]
[1734985544719,0.00015972,92961.0,92960.0,0.23206188]
[1734985544923,0.00015972,92961.0,92960.0,0.48498632]
[1734985545138,0.00015972,92961.0,92960.0,0.48098632]
[1734985545548,0.00015972,92961.0,92960.0,0.48798632]
[1734985545724,0.00015972,92961.0,92960.0,0.48098632]
[1734985545986,0.00015972,92961.0,92960.0,0.35798632]
[1734985546191,0.00015972,92961.0,92960.0,0.20798632]
[1734985546748,0.00015972,92961.0,92960.0,0.12908632]
[1734985546964,0.00015972,92961.0,92956.0,0.09621409]
[1734985547132,0.00015972,92961.0,92946.0,0.0469]
[1734985547133,0.00015972,92961.0,92960.0,0.009]
[1734985547344,0.215146,92960.0,92946.0,0.0469]
[1734985547549,0.215146,92960.0,92947.0,0.01431141]
[1734985548223,0.215146,92960.0,92942.0,0.09621409]
[1734985548224,0.00015972,92961.0,92960.0,0.007]
[1734985548424,0.21530272,92961.0,92960.0,0.007]
[1734985548609,0.43044672,92961.0,92942.0,0.09728996]
[1734985548783,0.215148,92959.0,92943.0,0.10398632]
[1734985548991,0.002,92960.0,92943.0,0.10398632]
[1734985549187,0.215148,92959.0,92943.0,0.08398632]
[1734985549947,0.215148,92959.0,92944.0,0.215183]
[1734985550180,0.21530272,92961.0,92945.0,0.00107578]
[1734985550417,0.00315972,92961.0,92950.0,0.215168]
[1734985550679,0.00315972,92961.0,92951.0,0.00107571]
[1734985550911,0.00315972,92961.0,92952.0,0.215164]
[1734985551139,0.00315972,92961.0,92954.0,0.21516]
[1734985551341,0.00015972,92961.0,92955.0,0.10398632]
[1734985551570,0.00215972,92961.0,92955.0,0.10398632]
[1734985551803,0.00215972,92961.0,92955.0,0.10506195]
[1734985552038,0.00215972,92961.0,92956.0,0.215155]
[1734985552276,0.00215972,92961.0,92957.0,0.10398632]
[1734985552451,0.00215972,92961.0,92958.0,0.21515]
[1734985552713,0.00215972,92961.0,92959.0,0.00107563]
[1734985553306,0.00215972,92961.0,92960.0,0.10398632]
[1734985553532,0.00215972,92961.0,92960.0,0.36920778]
[1734985553759,0.00215972,92961.0,92960.0,0.36813232]
[1734985553961,0.00015972,92961.0,92960.0,0.36813232]
[1734985554135,0.00015972,92961.0,92960.0,0.049]
[1734985554639,0.00015972,92961.0,92945.0,0.215178]
[1734985554857,0.00015972,92961.0,92944.0,0.0493]
[1734985554858,0.00015972,92961.0,92960.0,0.005]
[1734985555705,0.215146,92960.0,92944.0,0.0493]
[1734985556094,0.215156,92956.0,92944.0,0.0493]
[1734985556778,0.215149,92959.0,92945.0,0.00107579]
[1734985556967,0.00015972,92961.0,92950.0,0.215168]
[1734985557107,0.00015972,92961.0,92951.0,0.10398632]
[1734985557309,0.00015972,92961.0,92959.0,0.0001708]
[1734985557744,0.00024512,92961.0,92959.0,0.0001708]
[1734985558723,0.00024512,92961.0,92959.0,0.0021708]
[1734985559144,0.00024512,92961.0,92951.0,0.08615712]
[1734985560514,0.00024512,92961.0,92951.0,0.0872328]
[1734985560632,0.00024512,92961.0,92951.0,0.08615712]
[1734985561055,0.00024512,92961.0,92938.0,0.215197]
[1734985561252,0.00024512,92961.0,92959.0,0.002]
[1734985561723,0.215156,92956.0,92945.0,0.10398632]
[1734985561932,0.215157,92956.0,92951.0,0.002]
[1734985562160,0.215157,92956.0,92945.0,0.10398632]
[1734985562361,0.215157,92956.0,92938.0,0.430394]
[1734985562565,0.215148,92959.0,92942.0,0.215187]
[1734985562916,0.430297,92959.0,92942.0,0.215187]
[1734985563274,0.00224512,92961.0,92931.0,0.215212]
[1734985563478,0.11026478,92971.0,92932.0,0.10398632]
[1734985563680,0.31910932,92970.0,92932.0,0.00015972]
[1734985563883,0.1196,92969.0,92932.0,0.00015972]
[1734985564030,0.1,92965.0,92929.0,0.0492]
[1734985564243,0.1,92965.0,92926.0,0.09621409]
[1734985564244,0.215222,92927.0,92926.0,0.09621409]
[1734985564676,0.215218,92929.0,92910.0,0.09621409]
[1734985564831,0.215241,92920.0,92910.0,0.09621409]
[1734985565039,0.215251,92915.0,92910.0,0.09621409]
[1734985565301,0.0807,92932.0,92910.0,0.09621409]
[1734985565504,0.215231,92923.0,92910.0,0.09637381]
[1734985565655,0.215248,92916.0,92910.0,0.09637381]
[1734985565857,0.21525,92915.0,92910.0,0.00015972]
[1734985566058,0.15,92914.0,92910.0,0.00015972]
[1734985566265,0.15,92912.0,92910.0,0.00015972]
[1734985566488,0.31924132,92913.0,92910.0,0.00015972]
[1734985566489,0.54554532,92911.0,92910.0,0.00015972]
[1734985567506,0.54554532,92911.0,92910.0,0.00515972]
[1734985567752,0.54554532,92911.0,92910.0,0.00015972]
[1734985568072,0.54754532,92911.0,92910.0,0.00015972]
[1734985568481,0.443559,92911.0,92910.0,0.00015972]
[1734985568681,0.367259,92911.0,92910.0,0.00015972]
[1734985569159,0.002,92911.0,92892.0,0.00107637]
[1734985569366,0.002,92911.0,92896.0,0.0772]
[1734985569566,0.002,92911.0,92904.0,0.215274]
[1734985569770,0.21511043,92923.0,92906.0,0.262271]
[1734985569999,0.21511043,92923.0,92896.0,0.0772]
[1734985570000,0.10398632,92923.0,92896.0,0.0772]
[1734985570212,0.215258,92912.0,92897.0,0.21636833]
[1734985570381,0.215243,92919.0,92901.0,0.21528]
[1734985570584,0.002,92911.0,92902.0,0.10506257]
[1734985570808,0.002,92911.0,92903.0,0.215278]
[1734985571012,0.215238,92921.0,92910.0,0.0001708]
[1734985571436,0.215238,92920.0,92910.0,0.0001708]
[1734985571585,0.215249,92916.0,92910.0,0.0001708]
[1734985571952,0.004,92923.0,92910.0,0.0001708]
[1734985572146,0.215228,92925.0,92910.0,0.00124698]
[1734985572553,0.15,92928.0,92911.0,0.10398632]
[1734985572816,0.215222,92927.0,92912.0,0.0010761]
[1734985573029,0.215222,92927.0,92911.0,0.31924532]
[1734985573030,0.215222,92927.0,92913.0,0.10398632]
[1734985573240,0.215208,92933.0,92914.0,0.215252]
[1734985573452,0.215208,92933.0,92915.0,0.00107608]
[1734985573632,0.215208,92933.0,92920.0,0.215238]
[1734985573787,0.00015954,92933.0,92920.0,0.215238]
[1734985573990,0.00015954,92933.0,92924.0,0.215228]
[1734985574193,0.00015954,92933.0,92928.0,0.215219]
[1734985574389,0.00015954,92933.0,92924.0,0.28222798]
[1734985574390,0.00015954,92933.0,92930.0,0.215215]
[1734985574640,0.00215954,92933.0,92932.0,0.215211]
[1734985574915,0.00015954,92933.0,92932.0,0.34219732]
[1734985575118,0.00015954,92933.0,92932.0,0.36779732]
[1734985575320,0.00015954,92933.0,92932.0,0.0486]
[1734985576858,0.00015954,92933.0,92932.0,0.04967592]
[1734985577042,0.00015954,92933.0,92932.0,0.15258632]
[1734985577239,0.00015954,92933.0,92932.0,0.16158632]
[1734985577487,0.00015954,92933.0,92932.0,0.15258632]
[1734985577687,0.00015954,92933.0,92932.0,0.15366217]
[1734985577901,0.00015954,92933.0,92932.0,0.15866217]
[1734985578107,0.00015954,92933.0,92932.0,0.15366217]
[1734985578441,0.00015954,92933.0,92932.0,0.16066217]
[1734985578637,0.00015954,92933.0,92932.0,0.15366217]
[1734985578836,0.00015954,92933.0,92932.0,0.0486]
[1734985579036,0.00015954,92933.0,92932.0,0.0416]
[1734985579465,0.00015954,92933.0,92932.0,0.007]
[1734985580864,0.215211,92932.0,92917.0,0.215245]
[1734985581089,0.21636854,92933.0,92919.0,0.215241]
[1734985581287,0.21636854,92933.0,92917.0,0.10398632]
[1734985581694,0.21636854,92933.0,92932.0,0.003]